Cogmind - Beta 16 @@@ ROGUE MODE // 2025.12.25 @ 13:41:06 Player: PE-P51 Result: Destroyed by S-10 Pest with Light Assault Rifle Performance ------------- Evolutions (0) 0 Regions Visited (2) 400 Robots Destroyed (24) 120 Value Destroyed (470) 470 Prototype IDs (2) 40 Alien Tech Used (0) 0 Bonus (0) 0 TOTAL SCORE: 1030 Bonus ------- None Cogmind --------- Core Integrity 0/250 Matter 86/300 Energy 82/100 System Corruption 2% Temperature Cool (0) Movement Treading (160) Location -10/Mines Parts ------- > --- POWER (1) -------- (None) > --- PROPULSION (2) --- Light Treads Light Treads > --- UTILITY (2) ------ Improved Heat Sink Large Storage Unit > --- WEAPON (2) ------- Assault Rifle > --- INVENTORY (15) --- Flight Unit Flight Unit Heat Sink Heat Sink Hacking Suite Mining Laser Peak State ------------ > --- POWER ------------ Light Ion Engine > --- PROPULSION ------- Light Treads Light Treads > --- UTILITY ---------- Heat Sink Large Storage Unit > --- WEAPON ----------- EM Pulse Gun Light Assault Rifle > --- INVENTORY -------- Light Treads Light Treads Light Treads Light Treads Light Treads Heat Sink Targeting Computer Light Armor Plating EM Pulse Gun Mining Laser [Rating: 8] Favorites ----------- Power Light Ion Engine Engine Light Ion Engine Propulsion Light Treads Treads Light Treads Leg Aluminum Leg Utility Large Storage Unit Device Heat Sink Storage Large Storage Unit Processor Targeting Computer Protection Light Armor Plating Weapon Light Assault Rifle Energy Gun EM Pulse Gun Ballistic Gun Light Assault Rifle Build | -11 -10 -10 ------- Run | Yrd Mat Min Slots Evolved . | . . . Power . | . . . Propulsion . | . . . Utility . | . . . Weapon . | . . . Parts Attached 25 | . 14 11 Power 2 | . 1 1 Engine 2 | . 1 1 Core . | . . . Reactor . | . . . Propulsion 9 | . 5 4 Treads 8 | . 4 4 Leg 1 | . 1 . Wheel . | . . . Hover . | . . . Flight . | . . . Utility 6 | . 3 3 Device 3 | . 2 1 Storage 1 | . 1 . Processor 1 | . . 1 Hackware . | . . . Protection 1 | . . 1 Artifact . | . . . Weapon 8 | . 5 3 Energy Gun 2 | . 2 . Energy Cannon . | . . . Ballistic Gun 6 | . 3 3 Ballistic Cannon . | . . . Launcher . | . . . Special Weapon . | . . . Impact Weapon . | . . . Slashing Weapon . | . . . Piercing Weapon . | . . . Special Melee Weapon . | . . . Unidentified Prototypes . | . . . Parts Lost 16 | . 4 12 Power 3 | . 1 2 Propulsion 5 | . 1 4 Utility 2 | . . 2 Weapon 6 | . 2 4 Highest Loss Streak 11 | . 2 11 To Critical Strikes . | . . . Average Backups 10 | . 10 12 Power . | . . . Propulsion 4 | . 4 5 Utility 2 | . 2 3 Weapon 2 | . 2 3 Tool/Special . | . . . Unused Backups 15 | . 11 4 Power 1 | . 1 . Propulsion 8 | . 6 2 Utility 3 | . 2 1 Weapon 3 | . 2 1 Tool/Special . | . . . Average Slot Usage (%) 96 | . 98 89 Engine 13 | . 13 11 Treads 18 | . 17 26 Leg 8 | . 10 . Device 11 | . 12 8 Storage 14 | . 14 14 Energy Gun 8 | . 10 . Ballistic Gun 18 | . 17 25 Peak Build Rating 8 | . 8 8 Average Rating 7 | . 7 7 On Entrance 6 | 6 6 8 Avg Prop Armor Cover (%) . | . . . Naked Turns . | . . . Heaviest Build 33 | 13 33 30 Greatest Support 40 | 20 40 40 Greatest Overweight (x) 2 | . 2 1 Average Overweight (x) . | . . . Largest Inventory Capacity 15 | . 15 15 Average Capacity 14 | . 14 15 Most Carried 15 | . 15 15 Average Carried 10 | . 10 12 Final Capacity 15 | 8 15 15 Final Carried 15 | 6 15 6 Class Distribution -------------------- 100% | Mutant Dominant Class ---------------- Mutant | -10/Materials Mutant | -10/Mines Resources | -11 -10 -10 ----------- Run | Yrd Mat Min Matter Collected 599 | 200 296 103 Remotely . | . . . Salvage Created 874 | . 635 239 Parts 57 | . 53 4 Haulers Intercepted 2 | . 2 . Recyclers Shooed 3 | . 3 . Parts Field Recycled . | . . . Retrieved Matter . | . . . Parts Self-Destructed . | . . . Prevented . | . . . Parts Restored . | . . . Kills | -11 -10 -10 ------- Run | Yrd Mat Min Combat Hostiles Destroyed 26 | . 14 12 Guns 26 | . 14 12 Classes Destroyed 9 | . 7 2 Worker 2 | . 2 . Builder 1 | . 1 . Hauler 2 | . 2 . Operator 2 | . 2 . Watcher 1 | . 1 . Swarmer 6 | . 6 . Grunt 9 | . 8 1 Demolisher 1 | . . 1 Assembled 11 | . . 11 Best Kill Streak 11 | . 4 11 Combat Bots Only 11 | . 3 11 Max Kills in Single Turn 2 | . 1 2 Gunslinging . | . . . Exploded . | . . . Melee . | . . . Uniques/NPCs Destroyed . | . . . Combat | -11 -10 -10 -------- Run | Yrd Mat Min Hostile Shots Fired 195 | . 84 111 Missed 44 | . 22 22 Hits 151 | . 62 89 Melee 3 | . . 3 Projectile 148 | . 62 86 AOE 13 | . . 13 Critical Strikes 2 | . 2 . Part Disruptions 2 | . . 2 Damage Taken 2303 | . 718 1585 Core 254 | . 144 110 Absorbed by Shields . | . . . Regen/Repaired (Parts) 38 | . 38 . Core Remaining (%) 100 | 100 . . Volleys Fired 160 | . 104 56 Largest 2 | . 2 2 Hottest 70 | . 70 40 Shots Fired 237 | . 151 86 Gun 237 | . 151 86 Cannon . | . . . Launcher . | . . . Special . | . . . Kinetic 205 | . 119 86 Thermal 23 | . 23 . Explosive . | . . . Electromagnetic 9 | . 9 . Robot Hit Streak 12 | . 12 5 Robot Miss Streak 8 | . 5 8 Penetration Max . | . . . Secondary Targets 4 | . 3 1 Max Gunslinging Chain 1 | . 1 1 Shots Hit Robots 137 | . 98 39 Core Hits 71 | . 45 26 Critical Kills 2 | . 2 . Critical Parts Destroyed . | . . . Critical Strikes 5 | . 5 . Burn 2 | . 2 . Destroy 2 | . 2 . Corrupt 1 | . 1 . Melee Attacks . | . . . Impact . | . . . Slashing . | . . . Piercing . | . . . Sneak Attacks . | . . . Combat Hostiles . | . . . Follow-up Attacks . | . . . Damage Inflicted 1615 | . 1056 559 Guns 1574 | . 1015 559 Cannons . | . . . Explosions . | . . . Melee . | . . . Ramming 41 | . 41 . Kinetic 1228 | . 669 559 Thermal 245 | . 245 . Explosive . | . . . Electromagnetic 101 | . 101 . Impact . | . . . Slashing . | . . . Piercing . | . . . Highest Corruption 2 | . 2 2 Average Corruption 2 | . 2 2 Corruption Purged . | . . . Corruption Blocked . | . . . Effects 7 | . 2 5 Message Errors 1 | . 1 . Matter Fused 2 | . 1 1 Heat Flow Errors 2 | . . 2 Energy Discharges 2 | . . 2 Overload Shots . | . . . Overflow Damage . | . . . Projectiles . | . . . Explosions . | . . . Melee . | . . . Knockbacks 1 | . 1 . Impact 1 | . 1 . Kinetic . | . . . Secondary . | . . . Self-Inflicted Damage . | . . . Shots . | . . . Rammed 4 | . 4 . Targets Rammed 6 | . 6 . Kicked 2 | . 2 . Crushed . | . . . Highest Temperature 255 | . 176 255 Average Temperature 51 | . 46 66 Received Heat Transfer 531 | . 342 189 Siege Activations . | . . . Martial Activations . | . . . Shielding Activations . | . . . Robots Disrupted . | . . . Combat Hostiles . | . . . Robots Corrupted . | . . . Combat Hostiles . | . . . Parts Fried . | . . . Impact Corruptions . | . . . Robots Melted . | . . . Combat Hostiles . | . . . Parts Melted 4 | . 2 2 Heat Transferred 851 | . 851 . Parts Sabotaged . | . . . Parts Stolen . | . . . Parts Stripped . | . . . Power Chain Reactions . | . . . Alert | -11 -10 -10 ------- Run | Yrd Mat Min Maximum Alert Level . | . . . Low Security (%) 100 | . 100 100 Level 1 . | . . . Level 2 . | . . . Level 3 . | . . . Level 4 . | . . . Level 5 . | . . . High Security . | . . . Max Security . | . . . Peak Influence 146 | . 146 45 Initial 45 | . . 45 Average 28 | . 33 6 Influence Increases 467 | . 446 21 Destroy 0b10 Robot/C 300 | . 280 20 Destroy 0b10 Robot/NC 40 | . 40 . Destroy Leader 76 | . 76 . Allied During Kill 1 | . . 1 Successful Hack 20 | . 20 . Lose Combat Pursuer 30 | . 30 . Influence Decreases 467 | . 328 139 Entered New Map 73 | . . 73 Time Decay 338 | . 292 46 Lost Part 56 | . 36 20 Squads Dispatched 3 | . 3 . Investigation 1 | . 1 . Extermination . | . . . Reinforcement 2 | . 2 . Assault . | . . . Garrison . | . . . Intercept . | . . . Searches Triggered . | . . . Construction Impeded . | . . . Haulers Reinforced . | . . . Active Scanning Responses . | . . . Cargo Convoy Interrupts . | . . . Stealth | -11 -10 -10 --------- Run | Yrd Mat Min Distress Signals 1 | . 1 . Communications Jammed . | . . . Distress Signals . | . . . Times Spotted 56 | . 38 18 Peak Tracking Total 5 | . 4 5 Tactical Retreats 2 | . 2 . Traps | -11 -10 -10 ------- Run | Yrd Mat Min Traps Triggered 2 | . 2 . Indirectly . | . . . Trap Hack Attempts . | . . . Triggered . | . . . Disarmed . | . . . Reprogrammed . | . . . Reused . | . . . Traps Extracted . | . . . Installed . | . . . Triggered . | . . . Machines | -11 -10 -10 ---------- Run | Yrd Mat Min Machines Disabled . | . . . Max in Single Turn . | . . . Machines Repaired . | . . . Machines Dismantled . | . . . Machines Sabotaged . | . . . Overloaded Fab Kills . | . . . Hacking | -11 -10 -10 --------- Run | Yrd Mat Min Machines Accessed 6 | . 6 . Terminals 5 | . 5 . Fabricators . | . . . Repair Stations 1 | . 1 . Recycling Units . | . . . Scanalyzers . | . . . Garrison Access . | . . . Total Hacks 20 | . 20 . Successful 9 | . 9 . Failed 10 | . 10 . Catastrophic 1 | . 1 . Database Lockouts 1 | . 1 . Manual 11 | . 11 . Terminals 16 | . 16 . Fabricators . | . . . Repair Stations 4 | . 4 . Recycling Units . | . . . Scanalyzers . | . . . Garrison Access . | . . . Terminal Hacks 7 | . 7 . Robot Analysis 5 | . 5 . Prototype ID Bank 1 | . 1 . Zone Layout 1 | . 1 . Fabricator Hacks . | . . . Repair Station Hacks 2 | . 2 . Scan Component 1 | . 1 . Repair 1 | . 1 . Recycling Unit Hacks . | . . . Scanalyzer . | . . . Garrison Access Hacks . | . . . Unauthorized Hacks . | . . . Terminals . | . . . Fabricators . | . . . Repair Stations . | . . . Recycling Units . | . . . Scanalyzers . | . . . Garrison Access . | . . . Data Cores Recovered . | . . . Used . | . . . Hacking Detections 5 | . 5 . Full Trace Events 1 | . 1 . Feedback Events . | . . . Feedback Blocked . | . . . Robot Schematics Acquired . | . . . Robots Built . | . . . Authchips . | . . . Time . | . . . Total Robot Build Rating . | . . . Part Schematics Acquired . | . . . Parts Built . | . . . Authchips . | . . . Time . | . . . Total Part Build Rating . | . . . Part Studies Acquired . | . . . Parts Repaired 1 | . 1 . Time 26 | . 26 . Parts Recycled . | . . . Recycled Matter . | . . . Retrieved Matter . | . . . Retrieved Components . | . . . Parts Scanalyzed . | . . . Part Schematics Acquired . | . . . Parts Damaged . | . . . Bothacking | -11 -10 -10 ------------ Run | Yrd Mat Min Used RIF Installer . | . . . Robots Hacked . | . . . Non-combat . | . . . Combat . | . . . Robot Hacks Applied . | . . . Relay Couplers Released . | . . . Fabnet Peak Effective % . | . . . Robots Rewired . | . . . Allies Hacked . | . . . Hacks Repelled . | . . . Allies | -11 -10 -10 -------- Run | Yrd Mat Min Total Allies 5 | . . 5 Largest Group 5 | . . 5 Highest-Rated Group 87 | . . 87 Highest-Rated Ally 31 | . . 31 Total Orders . | . . . Ally Attacks 16 | . . 16 Total Damage 159 | . . 159 Kills 1 | . . 1 Allies Corrupted . | . . . Allies Melted . | . . . Intel | -11 -10 -10 ------- Run | Yrd Mat Min Active Infowar (turns) . | . . . Robot Analysis Total 5 | . 5 . Derelict Logs Recovered . | . . . Drone Launches . | . . . Drone Recoveries . | . . . Exploration | -11 -10 -10 ------------- Run | Yrd Mat Min Turns Passed 2696 | . 2260 436 Spaces Moved 1134 | 1 964 169 Core . | . . . Treads 690 | . 521 169 Legs 444 | 1 443 . Wheels . | . . . Hover . | . . . Flight . | . . . Fastest Speed 120 | 120 120 160 Average Speed 164 | 120 165 163 Slowest Speed 260 | 120 260 240 Overloaded Moves . | . . . Propulsion Burnouts . | . . . Robots Hopped . | . . . Potential Cave-ins . | . . . Cave-ins Triggered . | . . . Exploration Rate (%) 45 | 2 93 40 Regions Visited 2 Branch Regions 1 Pre-discovered Areas . | . . . Known Exits Taken . | . . . Unknown Exits Taken 2 | 1 1 . Scrap Searched . | . . . Spaces Dug . | . . . Terrain Destroyed . | . . . Melee . | . . . Projectile . | . . . AOE . | . . . Terrain Rammed . | . . . Walls Destroyed . | . . . Machines Disabled . | . . . Actions | -11 -10 -10 --------- Run | Yrd Mat Min Total 1745 | . 1502 243 Wait 390 | . 383 7 Move 1132 | . 963 169 Hop . | . . . Pick Up 17 | . 17 . Fast Attach 6 | . 5 1 Attach 11 | . 2 9 Detach 1 | . 1 . Swap 10 | . 9 1 Drop 12 | . 12 . Fire 160 | . 104 56 Melee . | . . . Ram . | . . . Kick 2 | . 2 . Crush 4 | . 4 . Escape Stasis . | . . . Rewire . | . . . Trap . | . . . Miscellaneous . | . . . Route ------- -11/Scrapyard -10/Materials (discovered 4 exits: [*Mat x3] / [*Min]) -10/Mines History --------- Turn | Location | Event 1 | -11/Scrapyard | Discovered new exit (range 0) 1 | -11/Scrapyard | Entered Materials 135 | -10/Materials | Discovered new exit (range 9) 315 | -10/Materials | Build established: Mutant 480 | -10/Materials | Central database locked down 685 | -10/Materials | Discovered new exit (range 13) 838 | -10/Materials | Discovered new exit (range 15) 863 | -10/Materials | Core integrity fell below 50% 1861 | -10/Materials | Discovered new exit (range 15) 2150 | -10/Materials | Repaired Lgt. Ion Engine 2261 | -10/Materials | Entered Mines 2319 | -10/Mines | Assisted by bots powering up and referring to "LRC-V3" 2419 | -10/Mines | Assembled infested the area 2424 | -10/Mines | Assisted by a Guerilla fighting off Assembled 2566 | -10/Mines | Lost 4 allies 2596 | -10/Mines | Core integrity fell below 20% 2669 | -10/Mines | Destroyed 11 combat bots 2673 | -10/Mines | Lost 11 parts (2p3n2u4w) 2697 | -10/Mines | Destroyed by S-10 Pest with Light Assault Rifle Last Messages --------------- 02619_ The unstable cave ceiling collapses. 02623_ Lgt. Treads destroyed. 02625_ Ion Engine destroyed. 02628_ The unstable cave ceiling collapses. 02629_ as-00984 destroyed. 02630_ The unstable cave ceiling collapses. 02633_ Assault Rifle destroyed. 02648_ as-82626 destroyed. 02662_ The unstable cave ceiling collapses. 02668_ System corrupted: Energy discharge (-30). 02673_ Lgt. Treads destroyed. 02680_ as-38213 destroyed. 02682_ Acquired 16 matter. 02686_ The unstable cave ceiling collapses. 02688_ U-05 Engineer lays Concrete. 02689_ Acquired Imp. Heat Sink. 02689_ U-05 Engineer lays Concrete. 02691_ Acquired 41 matter. 02692_ U-05 Engineer lays Concrete. 02695_ U-05 Engineer builds a Wall. Map ----- +----------------------------------------------------+ | ????????# #???????????????????????????? | | ????????####### #### #???????????????????????????? | | ??####????????# #????????????????????????????????? | | ?## ##????#### ##???????????????????????????????? | | ?# #???## ##??????????????????????????????? | | ?# #???# #????#?????????????????????????? | | ?# #???# #??? #?????# ?????????????????? | | ?# #???## #### ### ????????????????? | | ?## #????## ????????????????? | | ??# #?????### ????????????????? | | ?## ##???????## ##### ????????????????? | | ?# ##????????# ##???? =% ???????????????? | | ?# ##???????# ##??? s ???????????????? | | ?# ##??????# #??? u ???????????????? | | ?## ######## #??? s#????????????????? | | ??# ## ## ##??? s ###??????????????? | | ??# ###???# ??????????????? | | ??# ####### != ????????????????? | | ?## * # *%#?#???????????????? | | ?# = # # !## #???????????????? | | ?# # #### # ##???????????????? | | ?## ### ## # # # #???????????????? | | ??### #####?## ## ## % ###?????????????????? | | ????## ##?????# # ==% #???????????????????? | | ?????#####??????# ## ###[ =# #?????????????????? | | ????????????????# ## @! ### #????????????????? | | ????????????????# ## #????????????????????? | | ????????????????# # ##????????????????????? | | ????????????????## %%% ##?????????????????????? | | ?????????????????#% ##?????????????????????? | | ??????????????? %%% ## #??????????????????????? | | ????????????? ## ## ??????????????????????? | | ????????????#########??##? ??????????????????????? | | ?????????????????????????? ?????????????????????? | | ?????????????????????????? ?????????????????????? | | ?????????????????????????? ????????????????????? | | ??????????????????????????###????????????????????? | | ?????????????????????????????????????????????????? | | ?????????????????????????????????????????????????? | | | | | | | | | | | | | | | | | | | | | | | +----------------------------------------------------+ Best States ------------- Heat Dissipation 39 Energy Generation 10 Energy Capacity 250 Matter Stores 300 Matter Capacity 300 Sight Range 16 Terrain Scan Density 10 Armor Coverage 150 Evasion (%) 55 Targeting Accuracy 5 Recoil Reduction 2 Item Schematics ----------------- None Robot Schematics ------------------ None Fabricated ------------ Nothing Repaired ---------- Lgt. Ion Engine | 5% | -10/Materials Studied --------- None Alien Tech Used ----------------- None Achievements -------------- None Challenges ------------ None Game ------ Seed CoilTachyonGun Manual? 0 Play Time 00:12:21 Cumulative 230.5 hours Start 2025.12.25 @ 13:31:39 End 2025.12.25 @ 13:41:06 Sessions 1 Manual Loads 0 Difficulty Rogue Special Mode None Game No. 313 Rogue 312 Adventurer 1 Explorer 0 Win Type - Total 2 Types 1/0/0/1/0/0/0/0/0/0 Lore% 69 Gallery% 63 Achievement% 55 Wizard Run 0 Options --------- Layout 0 ASCII 0 Keyboard 0 Movement Numpad Keybinds 0 Fullscreen 1 Font 24/Smallcaps Map View 76x50 Zoom Use 0% Tactical HUD 1 Map Filters NONE Filters NONE Steam 1 RUN: 3257e300-dfbc-4027-8f6b-970880764a0b